bitfinex/quotes_ETHUSD_20250426
["timestamp","ask_amount","ask_price","bid_price","bid_amount"]
[1745691274684,6.11,1803.8,1803.6,6.34334886]
[1745691274869,4.647,1803.9,1803.6,6.34334886]
[1745691275297,4.647,1803.9,1803.7,0.12173909]
[1745691275793,4.647,1803.9,1803.8,0.12173909]
[1745691275993,4.647,1803.9,1803.6,0.7989]
[1745691276197,4.647,1803.9,1803.7,0.12173909]
[1745691276502,4.647,1803.9,1803.6,0.7989]
[1745691276665,4.647,1803.9,1803.8,0.12156614]
[1745691276996,4.647,1803.9,1803.8,0.12139318]
[1745691277166,10.19065597,1803.9,1803.6,0.7989]
[1745691277373,10.19065597,1803.9,1803.7,0.12139318]
[1745691277698,11.76405845,1803.9,1803.6,0.7989]
[1745691277901,11.76405845,1803.9,1803.8,0.12139318]
[1745691278194,6.22040248,1803.9,1803.8,0.12139318]
[1745691278400,11.76413898,1803.9,1803.5,5.54464923]
[1745691278694,10.1907365,1803.9,1803.6,0.12139318]
[1745691280496,0.8237,1803.8,1803.6,0.12139318]
[1745691280798,0.8237,1803.8,1803.4,6.34373779]
[1745691280999,0.8237,1803.8,1803.5,0.12139318]
[1745691281200,6.36757303,1803.8,1803.5,0.12139318]
[1745691283599,5.54416247,1803.7,1803.5,0.12139318]
[1745691284301,8.02358288,1803.8,1803.5,0.12139318]
[1745691285369,6.36774891,1803.8,1803.5,0.12139318]
[1745691286005,4.631,1803.7,1803.5,0.12139318]
[1745691286189,5.54446662,1803.6,1803.5,0.12139318]
[1745691286504,5.54446662,1803.6,1803.2,0.00904023]
[1745691286706,5.54446662,1803.6,1803.5,0.12179682]
[1745691286908,5.54446662,1803.6,1803.2,0.00904023]
[1745691287103,5.54446662,1803.6,1803.5,0.12179682]
[1745691287270,5.54446662,1803.6,1803.2,5.5547284]
[1745691287606,16.28538102,1803.7,1803.3,5.66843555]
[1745691287971,16.28538102,1803.7,1803.4,0.8299]
[1745691288168,11.65438102,1803.7,1803.4,0.8299]
[1745691288371,4.631,1803.6,1803.5,0.12306539]
[1745691292369,4.631,1803.6,1803.5,6.99541329]
[1745691292606,4.631,1803.6,1803.5,7.79441329]
[1745691293111,4.631,1803.6,1803.5,7.11663444]
[1745691295415,4.631,1803.6,1803.5,0.12306539]
[1745691295742,4.631,1803.6,1803.3,5.5452558]
[1745691295900,4.631,1803.6,1803.5,0.12237341]
[1745691296216,4.631,1803.6,1803.5,0.12202745]
[1745691296528,4.631,1803.6,1803.3,5.5452558]
[1745691297143,4.631,1803.6,1803.4,0.12202745]
[1745691297497,4.631,1803.6,1803.3,5.5451728]
[1745691297698,4.631,1803.6,1803.5,0.12277705]
[1745691298213,5.54399271,1803.8,1803.4,5.54491974]
[1745691298413,4.631,1803.7,1803.5,0.12277705]
[1745691299027,4.631,1803.7,1803.3,6.22301094]
[1745691299189,4.631,1803.7,1803.4,0.12294999]
[1745691299390,4.631,1803.7,1803.3,6.22301094]
[1745691299592,4.631,1803.7,1803.4,0.12294999]
[1745691299792,4.631,1803.7,1803.3,6.22301094]
[1745691300012,4.631,1803.7,1803.4,0.12294999]
[1745691300428,4.631,1803.7,1803.3,6.22301094]
[1745691300623,4.631,1803.7,1803.4,0.12294999]
[1745691300839,10.17517591,1803.7,1803.3,7.47622966]
[1745691301000,10.17517591,1803.7,1803.4,0.12294999]
[1745691301200,10.17517591,1803.7,1803.3,7.47622966]
[1745691301401,10.17517591,1803.7,1803.4,0.12294999]
[1745691301729,4.631,1803.7,1803.4,5.54508135]
[1745691301955,4.631,1803.7,1803.5,0.88274999]
[1745691302145,4.631,1803.7,1803.5,6.4273691]
[1745691303113,4.631,1803.8,1803.5,6.4273691]
[1745691304637,4.631,1803.8,1803.5,7.10514795]
[1745691307142,4.631,1803.8,1803.5,1.56052884]
[1745691307761,4.631,1803.8,1803.5,0.88274999]
[1745691307911,5.5442165,1803.7,1803.5,0.12294999]
[1745691308321,5.5442165,1803.7,1803.3,6.30511115]
[1745691308523,5.5442165,1803.7,1803.6,0.12294999]
[1745691308722,5.5442165,1803.7,1803.3,6.30516468]
[1745691309244,5.5442165,1803.7,1803.4,0.12294999]
[1745691309443,12.74186375,1803.7,1803.3,6.30516468]
[1745691309662,7.19743535,1803.7,1803.4,0.12294999]
[1745691309823,5.5445006,1803.6,1803.3,0.7598]
[1745691310018,7.19757906,1803.7,1803.4,0.12294999]
[1745691310222,1.65321885,1803.7,1803.3,0.7598]
[1745691310458,5.54435442,1803.7,1803.4,0.12294999]
[1745691310655,5.54435442,1803.7,1803.3,6.30518866]
[1745691310844,5.54435442,1803.7,1803.4,0.12294999]
[1745691311046,5.54435442,1803.7,1803.3,6.30518866]
[1745691311319,5.54436346,1803.7,1803.4,0.12294999]
[1745691311736,5.54436346,1803.7,1803.3,6.30517088]
[1745691312236,5.54436346,1803.7,1803.4,0.12294999]
[1745691312435,5.54436346,1803.7,1803.3,6.30517088]
[1745691312634,5.54436346,1803.7,1803.4,0.12294999]
[1745691312835,5.54436346,1803.7,1803.3,6.30517088]
[1745691313035,5.54436346,1803.7,1803.4,0.12294999]
[1745691313235,5.54436346,1803.7,1803.3,6.98294973]
[1745691313437,10.98807217,1803.8,1803.4,0.12294999]
[1745691313746,5.54417502,1803.7,1803.3,6.98294973]
[1745691313944,5.54417502,1803.7,1803.5,0.12294999]
[1745691314144,5.54417502,1803.7,1803.4,0.12266166]
[1745691314347,5.54417502,1803.7,1803.3,6.98294973]
[1745691314547,5.54417502,1803.7,1803.5,0.12266166]
[1745691314746,5.54417502,1803.7,1803.3,6.98294973]
[1745691314945,5.54417502,1803.7,1803.6,0.12266166]
[1745691315150,5.54417502,1803.7,1803.3,1.43757885]
[1745691315464,11.08862866,1803.7,1803.3,1.43757885]
[1745691315630,11.08862866,1803.7,1803.4,0.1223157]
[1745691315825,11.08862866,1803.7,1803.3,1.43757885]
[1745691316025,11.08862866,1803.7,1803.4,0.1223157]
[1745691316260,11.75713841,1803.7,1803.3,1.43757885]
[1745691316430,6.21268477,1803.7,1803.4,0.1223157]
[1745691316763,10.85568477,1803.7,1803.3,1.43757885]
[1745691316969,10.85568477,1803.7,1803.5,0.12243101]
[1745691317171,10.85568477,1803.7,1803.4,0.12248867]
[1745691317372,10.85568477,1803.7,1803.3,1.43757885]
[1745691317528,10.18717502,1803.7,1803.5,0.12248867]
[1745691317729,10.18717502,1803.7,1803.3,1.43757885]
[1745691317956,10.18717502,1803.7,1803.6,0.12248867]
[1745691318166,10.18717502,1803.7,1803.3,1.43757885]
[1745691318342,10.18717502,1803.7,1803.6,0.12248867]
[1745691318667,11.84159479,1803.7,1803.6,0.12248867]
[1745691318871,17.38602453,1803.7,1803.3,1.43757885]
[1745691319055,5.54458432,1803.6,1803.4,0.12248867]
[1745691319262,6.34682051,1803.5,1803.2,0.00904023]
[1745691319562,5.54524864,1803.4,1803.3,0.1123005]
[1745691323975,11.89184785,1803.5,1803.3,0.1123005]
[1745691324443,6.34682051,1803.5,1803.3,0.1123005]
[1745691325972,5.54492051,1803.5,1803.3,0.1123005]
[1745691326174,5.54462508,1803.6,1803.3,0.8857005]
[1745691326382,4.644,1803.5,1803.3,1.5975213]
[1745691327469,4.644,1803.5,1803.3,0.8857005]
[1745691329079,10.18896439,1803.5,1803.3,0.8857005]
[1745691329276,10.18896439,1803.5,1803.3,0.1123005]
[1745691332012,6.37568151,1803.4,1803.3,0.1123005]
[1745691332367,5.545389,1803.3,1803.2,0.00904023]
[1745691332549,6.73749605,1803.3,1803.2,0.00904023]
[1745691333093,6.73749605,1803.3,1803.2,0.11432963]
[1745691335053,6.73749605,1803.3,1803.2,0.1052894]
[1745691337391,5.54524622,1803.4,1803.1,0.1]
[1745691337887,5.54524622,1803.4,1803.2,0.10684533]
[1745691339210,11.09062838,1803.4,1803.2,0.10684533]
[1745691339514,5.545389,1803.3,1803.2,0.10684533]
[1745691345020,5.54528039,1803.4,1803.2,0.10684533]
[1745691348830,11.65419807,1803.7,1803.2,0.10684533]
[1745691348831,5.54457395,1803.6,1803.3,0.7806]
[1745691348998,4.641,1803.5,1803.3,0.7806]
[1745691349194,4.641,1803.5,1803.4,0.107652]
[1745691349603,4.641,1803.5,1803.3,0.7806]
[1745691349820,4.641,1803.5,1803.4,0.10672991]
[1745691350220,4.641,1803.5,1803.3,0.7806]
[1745691350521,4.641,1803.5,1803.4,0.10672991]
[1745691351336,4.641,1803.5,1803.3,0.7806]
[1745691351497,4.641,1803.5,1803.4,0.10672991]
[1745691351693,17.48,1803.9,1803.3,1.45837885]
[1745691352032,5.54397813,1803.8,1803.4,5.65176539]
[1745691352215,10.18497813,1803.8,1803.4,5.65176539]
[1745691353406,10.18497813,1803.8,1803.4,0.10672991]
[1745691353621,5.54415953,1803.7,1803.4,0.10672991]
[1745691353823,5.54415953,1803.7,1803.3,7.00357931]
[1745691354032,5.54415953,1803.7,1803.5,0.10598083]
[1745691354238,5.54415953,1803.7,1803.3,7.00357931]
[1745691354421,5.54415953,1803.7,1803.6,0.10598083]
[1745691354603,5.54415953,1803.7,1803.3,7.00357931]
[1745691354806,4.641,1803.8,1803.3,7.00357931]
[1745691354807,10.1850155,1803.8,1803.6,0.10598083]
[1745691355008,5.54415922,1803.7,1803.3,7.0035298]
[1745691356416,10.18500146,1803.8,1803.4,5.5450724]
[1745691357309,5.54418736,1803.7,1803.3,7.00363554]
[1745691359041,10.18494878,1803.8,1803.3,7.00363554]
[1745691359243,10.18494878,1803.8,1803.3,7.00354348]
[1745691359403,10.18494878,1803.8,1803.4,5.54506011]
[1745691361157,10.18494878,1803.8,1803.3,8.25944913]
[1745691361377,5.54420398,1803.7,1803.3,8.25944913]
[1745691361522,10.18496769,1803.8,1803.3,8.25939429]
[1745691361722,10.18496769,1803.8,1803.4,5.54508006]
[1745691362091,10.18496769,1803.8,1803.3,2.71419048]
[1745691362092,12.50658174,1803.8,1803.3,2.03641163]
[1745691362228,12.50658174,1803.8,1803.2,0.00904023]
[1745691362229,5.54499321,1803.5,1803.2,0.00904023]
[1745691363979,5.54464886,1803.6,1803.2,0.00904023]
[1745691364136,5.54481512,1803.5,1803.2,0.00904023]
[1745691364332,5.545389,1803.3,1803.2,0.00904023]
[1745691364642,11.2841679,1803.3,1803.2,0.00904023]
[1745691366359,4.64,1803.3,1803.2,0.00904023]
[1745691366570,10.185389,1803.3,1803.2,0.00904023]
[1745691368077,4.64,1803.3,1803.2,0.00904023]
[1745691368951,5.54508678,1803.4,1803.2,0.00904023]
[1745691369297,4.64,1803.3,1803.2,0.00904023]
[1745691369988,5.54508678,1803.4,1803.2,0.00904023]
[1745691370294,4.641,1803.3,1803.2,0.00904023]
[1745691372390,10.186389,1803.3,1803.2,0.00904023]
[1745691372755,4.641,1803.3,1803.2,0.00904023]
[1745691383521,4.622,1803.6,1803.4,5.54494176]
[1745691383692,4.622,1803.6,1803.4,6.22350746]
[1745691383893,4.622,1803.6,1803.4,7.47982312]
[1745691384186,4.622,1803.6,1803.4,6.80125742]
[1745691385618,4.622,1803.6,1803.4,1.25631566]
[1745691385993,4.622,1803.6,1803.4,6.80138075]
[1745691386813,4.622,1803.6,1803.5,5.54477405]
[1745691387000,4.622,1803.6,1803.5,6.77938953]
[1745691387207,4.622,1803.6,1803.5,1.23461548]
[1745691387716,4.622,1803.6,1803.5,2.02901548]
[1745691387919,4.622,1803.6,1803.5,7.57378953]
[1745691388424,21.273,1803.9,1803.5,2.02901548]
[1745691388628,21.273,1803.9,1803.7,6.22263386]
[1745691388980,4.622,1803.9,1803.7,6.22263386]
[1745691389403,4.622,1803.9,1803.7,0.6785657]
[1745691391327,4.622,1803.9,1803.7,6.22270724]
[1745691394500,4.622,1803.9,1803.7,0.6785657]
[1745691395492,4.622,1803.9,1803.7,6.22269912]
[1745691396924,4.622,1803.9,1803.8,5.54385186]
[1745691397095,11.65232077,1804.3,1803.9,5.54345153]
[1745691397320,4.621,1804.2,1804.0,5.54321475]
[1745691397507,4.621,1804.4,1804.1,5.54281453]
[1745691397683,4.621,1804.4,1804.1,6.8338189]
[1745691398387,4.621,1804.4,1804.2,6.8336218]
[1745691398590,4.621,1804.4,1804.1,8.15213034]
[1745691399824,4.621,1804.4,1804.1,6.86112597]
[1745691400126,10.16303081,1804.4,1804.1,1.31838337]
[1745691400429,10.16303081,1804.4,1804.0,7.0278328]
[1745691400594,5.54266955,1804.2,1803.8,6.97927752]
[1745691400925,5.542824,1804.2,1803.8,6.97934605]
[1745691401118,11.0857251,1804.2,1803.8,1.43549625]
[1745691401315,0.7601,1804.3,1803.9,5.54325528]
[1745691401816,6.30243734,1804.3,1803.9,5.54325528]
[1745691402026,6.30243734,1804.3,1803.9,11.08660005]
[1745691402230,4.621,1804.4,1804.0,5.54317244]
[1745691402231,10.1631718,1804.4,1804.0,5.54317244]
[1745691402525,4.621,1804.4,1804.0,12.52169203]
[1745691402734,4.621,1804.4,1804.1,5.54272939]
[1745691404029,4.621,1804.4,1804.0,6.97856218]
[1745691404206,4.621,1804.4,1804.1,0.69785622]
[1745691404897,10.16305116,1804.4,1804.1,0.69785622]
[1745691405098,10.16305116,1804.4,1804.0,6.9784961]
[1745691407932,10.16305116,1804.4,1803.9,6.79563057]
[1745691407933,5.54233642,1804.3,1803.9,1.25224354]
[1745691408118,5.542657,1804.2,1803.9,1.25224354]
[1745691409025,5.54233642,1804.3,1803.9,6.79567411]
[1745691411340,11.08495036,1804.3,1803.9,1.25224354]
[1745691411919,5.54233642,1804.3,1803.9,1.25224354]
[1745691412107,11.08490183,1804.3,1803.9,1.25224354]
[1745691412450,5.54233642,1804.3,1803.9,6.79571973]
[1745691414336,10.16312889,1804.4,1803.9,6.79560308]
[1745691414534,10.16312889,1804.4,1804.0,6.34270683]
[1745691415644,10.16312889,1804.4,1804.0,7.65653782]
[1745691415857,10.16312889,1804.4,1804.0,0.7995]
[1745691416446,10.16312889,1804.4,1804.0,6.34272973]
[1745691418057,10.16312889,1804.4,1804.0,0.7995]
[1745691418228,10.16312889,1804.4,1804.0,1.47729625]
[1745691418428,4.621,1804.4,1804.0,7.02038825]
[1745691418756,4.621,1804.4,1804.1,6.24485596]
[1745691419948,5.54244027,1804.3,1804.0,0.7995]
[1745691420656,10.93059136,1804.4,1804.0,0.7995]
[1745691421555,10.93059136,1804.4,1804.0,6.34265598]
[1745691422160,16.47288191,1804.4,1804.0,6.34265598]
[1745691422652,5.54231879,1804.3,1804.0,0.7995]
[1745691423431,5.54292999,1804.1,1803.8,0.8244]
[1745691423633,10.16749158,1804.0,1803.6,7.04662002]
[1745691423960,10.16749158,1804.0,1803.6,1.50219625]
[1745691424467,4.624,1804.0,1803.6,7.04646447]
[1745691424769,4.624,1804.0,1803.7,5.54414822]
[1745691425361,4.624,1804.0,1803.7,6.80320949]
[1745691426764,4.624,1804.0,1803.7,6.80297864]
[1745691426968,4.624,1804.0,1803.8,5.54378626]
[1745691427876,4.624,1804.0,1803.7,6.80305463]
[1745691428245,4.624,1804.0,1803.7,6.80318705]
[1745691428658,4.624,1804.0,1803.8,6.36782408]
[1745691428832,4.624,1804.0,1803.8,0.8241]
[1745691429754,4.624,1804.0,1803.8,6.36790163]
[1745691429933,4.624,1804.0,1803.8,0.8241]
[1745691433164,4.624,1804.0,1803.7,6.80319456]
[1745691434376,4.624,1804.0,1803.7,1.25906127]
[1745691434680,10.16730834,1804.0,1803.7,1.25906127]
[1745691438387,4.624,1804.0,1803.7,6.80320274]
[1745691438578,4.624,1804.0,1803.8,0.68032027]
[1745691439555,4.624,1804.0,1803.8,6.22412941]
[1745691440389,4.624,1804.0,1803.9,0.8026]
[1745691440593,4.624,1804.0,1803.9,6.34614454]
[1745691440963,4.603,1804.1,1803.9,6.34614454]
[1745691441159,4.603,1804.1,1803.9,7.67093409]
[1745691442692,4.603,1804.1,1803.9,2.12738955]
[1745691444663,4.603,1804.1,1803.9,7.67088407]
[1745691444959,5.54239061,1804.3,1804.1,0.7858]
[1745691444960,4.603,1804.3,1804.1,0.7858]
[1745691445403,4.603,1804.3,1804.1,6.32855172]
[1745691445701,4.603,1804.3,1804.2,6.17547793]
[1745691447237,21.246,1804.6,1804.4,0.7858]
[1745691447570,4.603,1804.6,1804.4,0.7858]
[1745691451653,4.603,1804.6,1804.4,6.32777208]
[1745691451833,4.602,1804.7,1804.6,5.54125728]
[1745691452827,5.5403093,1805.0,1804.6,5.54125728]
[1745691452994,5.5403093,1805.0,1804.6,6.32685728]
[1745691453336,6.29590116,1804.8,1804.4,7.00526806]
[1745691453839,5.54112923,1804.7,1804.3,6.36884819]
[1745691453995,10.14312923,1804.7,1804.4,0.63688482]
[1745691454603,4.602,1804.7,1804.4,0.63688482]
[1745691455686,4.602,1804.7,1804.4,6.1788746]
[1745691457831,10.14320728,1804.7,1804.4,0.63688482]
[1745691458028,5.54150259,1804.6,1804.2,6.17531451]
[1745691458230,5.54221788,1804.4,1803.9,7.69490372]
[1745691458414,10.89513183,1804.3,1803.9,2.15148955]
[1745691458634,10.89513183,1804.3,1803.9,0.8267]
[1745691458938,10.89513183,1804.3,1803.9,6.37019986]
[1745691462450,5.54281486,1804.2,1803.9,0.8267]
[1745691463759,10.89510446,1804.3,1803.9,6.3701529]
[1745691465855,5.54265892,1804.2,1803.9,0.8267]
[1745691467931,10.89513849,1804.3,1803.9,0.8267]
[1745691468127,18.08145537,1804.3,1803.9,0.8267]
[1745691468456,12.53886753,1804.3,1803.9,0.8267]
[1745691472370,4.605,1804.2,1803.9,0.8267]
[1745691473664,4.605,1804.2,1803.9,6.37004621]
[1745691475541,10.14763534,1804.2,1803.9,0.8267]
[1745691475741,4.605,1804.2,1803.9,0.8267]
[1745691475957,4.605,1804.2,1803.9,6.37023053]
[1745691477294,10.14771257,1804.2,1803.9,0.8267]
[1745691477452,5.54341136,1804.0,1803.7,0.7787]
[1745691479464,5.54312122,1804.1,1803.7,0.7787]
[1745691479641,5.54312122,1804.1,1803.7,6.32280901]
[1745691480668,5.54305713,1804.1,1803.7,6.32273374]
[1745691481680,4.605,1804.2,1803.8,5.54378268]
[1745691481848,4.605,1804.2,1803.9,5.54338943]
[1745691482050,4.605,1804.2,1804.0,0.8207]
[1745691483176,4.605,1804.2,1803.8,0.8327]
[1745691483354,5.54297994,1804.1,1803.8,0.8327]
[1745691483557,10.14779411,1804.2,1803.8,6.37653971]
[1745691483741,5.5429308,1804.1,1803.8,0.8327]
[1745691483937,11.7168204,1804.2,1803.8,0.8327]
[1745691483938,11.71681353,1804.2,1803.8,0.8327]
[1745691484177,11.71681353,1804.2,1803.8,6.37651541]
[1745691484375,11.71681353,1804.2,1803.8,0.8327]
[1745691484584,11.71681353,1804.2,1803.8,6.37652989]
[1745691484891,4.605,1804.2,1803.9,5.54354162]
[1745691485179,4.605,1804.2,1804.0,0.7932]
[1745691485992,0.8265,1804.5,1804.1,6.22048786]
[1745691486293,4.605,1804.4,1804.2,0.7932]
[1745691486446,10.14714385,1804.4,1804.2,0.7932]
[1745691486642,4.605,1804.4,1804.2,0.7932]
[1745691489563,10.14703657,1804.4,1804.2,0.7932]
[1745691489902,4.605,1804.4,1804.2,0.7932]
[1745691494555,4.605,1804.4,1804.2,6.33577628]
[1745691494757,4.605,1804.4,1804.2,1.42677763]
[1745691497802,12.47783583,1804.7,1804.2,6.96918661]
[1745691498004,4.605,1804.5,1804.3,5.54227552]
[1745691498188,4.605,1804.5,1804.2,6.96918661]
[1745691498591,4.605,1804.5,1804.2,12.51160481]
[1745691498902,4.605,1804.5,1804.3,1.25116048]
[1745691500099,4.605,1804.5,1804.4,0.767]
[1745691502918,4.598,1804.6,1804.4,6.30896317]
[1745691506785,5.3983,1804.6,1804.3,1.25116048]
[1745691507100,10.93990312,1804.6,1804.2,6.30079684]
[1745691516327,10.93990312,1804.6,1804.2,0.7582]
[1745691516533,10.93990312,1804.6,1804.2,6.3007893]
[1745691522239,5.54244983,1804.3,1804.0,3.0]
[1745691522435,5.54217758,1804.4,1804.0,3.0]
[1745691522604,11.84873362,1804.5,1804.0,10.16334552]
[1745691522801,5.5421148,1804.4,1804.0,10.16334552]
[1745691524535,5.5421148,1804.4,1804.0,7.16334552]
[1745691524837,5.5421148,1804.4,1804.0,12.7063997]
[1745691524998,5.5421148,1804.4,1804.0,7.16334552]
[1745691526188,6.30676936,1804.5,1804.0,7.16334552]
[1745691526468,6.30676936,1804.5,1804.1,7.61596126]
[1745691528783,5.54204965,1804.4,1804.1,2.07303583]
[1745691529963,5.54204965,1804.4,1804.1,1.29093583]
[1745691530161,5.54204965,1804.4,1804.0,5.54306179]
[1745691531751,6.30674012,1804.5,1804.0,5.54300232]
[1745691531951,6.30674012,1804.5,1804.1,5.54289468]
[1745691532269,17.03380444,1804.6,1804.2,6.36569266]
[1745691532974,5.54179453,1804.5,1804.2,0.8231]
[1745691533180,5.54218623,1804.4,1804.0,6.30882272]
[1745691533341,5.54218623,1804.4,1804.0,7.65715473]
[1745691535254,5.54218623,1804.4,1804.0,8.97720825]
[1745691536674,6.11,1804.6,1804.3,0.8098]
[1745691536871,6.11,1804.6,1804.2,1.29093583]
[1745691536872,12.47922547,1804.6,1804.2,1.29093583]
[1745691537052,6.9376,1804.6,1804.2,1.29093583]
[1745691537253,12.47920308,1804.6,1804.2,1.29093583]
[1745691537949,6.36920308,1804.6,1804.1,0.8098]
[1745691538148,5.54186142,1804.5,1804.1,6.35271312]
[1745691542053,10.13886142,1804.5,1804.1,6.35271312]
[1745691543200,4.597,1804.5,1804.2,5.54248897]
[1745691543498,4.597,1804.5,1804.1,6.35271312]
[1745691543657,4.597,1804.5,1804.1,7.80339586]
[1745691544297,10.13871974,1804.5,1804.1,7.80339586]
[1745691550895,10.13871974,1804.5,1804.1,1.45068274]
[1745691551202,6.3082102,1804.4,1804.0,12.37700771]
[1745691551896,6.3082102,1804.4,1804.0,12.37695238]
[1745691552199,0.7662,1804.4,1804.0,12.37695238]
[1745691553099,0.7662,1804.4,1804.1,5.54290892]
[1745691554266,0.7662,1804.4,1804.1,11.0856135]
[1745691554601,0.7662,1804.4,1804.2,1.10856135]
[1745691554800,0.7662,1804.4,1804.1,5.54270458]
[1745691556401,5.3642,1804.4,1804.1,5.54270458]
[1745691556808,4.598,1804.4,1804.2,6.36221108]
[1745691557008,4.598,1804.4,1804.3,5.54231557]
[1745691557709,4.598,1804.4,1804.3,6.36201557]
[1745691557866,4.598,1804.7,1804.4,5.5418596]
[1745691558072,4.598,1804.7,1804.6,6.83233004]
[1745691563209,10.707,1805.0,1804.7,5.54096194]
[1745691563377,10.707,1805.0,1804.6,6.83213742]
[1745691563577,10.707,1805.0,1804.6,8.81974186]
[1745691563790,10.707,1805.0,1804.7,5.54097288]
[1745691565600,0.7566,1804.9,1804.6,7.52883536]
[1745691567234,0.7566,1804.9,1804.6,7.52874149]
[1745691567460,4.597,1805.0,1804.7,5.54091362]
[1745691570334,4.597,1805.0,1804.7,6.97697271]
[1745691572535,4.597,1805.0,1804.7,6.97695127]
[1745691573237,10.13720291,1805.0,1804.6,7.58234086]
[1745691573616,4.597,1805.0,1804.6,13.12349882]
[1745691574338,4.597,1805.0,1804.7,5.54105178]
[1745691574843,4.597,1805.0,1804.6,7.58232812]
[1745691575337,10.13722272,1805.0,1804.6,7.58232812]
[1745691575544,10.13722272,1805.0,1804.6,13.12348363]
[1745691576439,10.13722272,1805.0,1804.6,7.58229134]
[1745691576939,4.597,1805.0,1804.7,5.54107281]
[1745691578342,10.13719216,1805.0,1804.6,7.58228594]
[1745691579152,10.13719216,1805.0,1804.6,13.12346583]
[1745691580246,4.597,1805.0,1804.6,13.12346583]
[1745691580550,4.597,1805.0,1804.6,13.12344931]
[1745691580845,4.597,1805.0,1804.6,7.58228594]
[1745691581051,4.597,1805.0,1804.6,13.12344209]
[1745691581259,4.597,1805.0,1804.6,7.58228594]
[1745691581852,4.597,1805.0,1804.6,13.12345223]
[1745691582650,4.597,1805.0,1804.6,7.58228594]
[1745691585857,10.13721984,1805.0,1804.6,7.58228594]
[1745691586460,10.13721984,1805.0,1804.6,13.12344583]
[1745691586662,10.13721984,1805.0,1804.6,7.58228594]
[1745691589560,4.597,1805.0,1804.6,7.58228594]
[1745691589720,4.597,1805.0,1804.7,5.54087212]
[1745691590461,4.597,1805.0,1804.7,5.54084121]
[1745691591155,4.597,1805.0,1804.6,2.79936442]
[1745691591340,2.15,2010.1,1804.8,2.10313583]
[1745691591341,0.8128,1805.3,1804.8,2.10313583]
[1745691591516,4.596,1805.2,1804.9,5.54022552]
[1745691591721,4.596,1805.2,1804.9,6.83116135]
[1745691592551,4.596,1805.2,1804.9,5.54022552]
[1745691592744,4.596,1805.2,1804.9,6.30456166]
[1745691593155,4.596,1805.2,1804.9,11.84480831]
[1745691593870,4.596,1805.2,1805.0,5.54012089]
[1745691598573,4.596,1805.2,1805.1,5.53985928]
[1745691598751,4.596,1805.2,1805.1,6.83079511]
[1745691599067,4.596,1805.2,1805.1,8.14542671]
[1745691600472,4.596,1805.2,1805.1,1.3146316]
[1745691600636,10.13555479,1805.2,1804.8,6.31594264]
[1745691600837,4.596,1805.2,1804.8,5.54053862]
[1745691601034,4.596,1805.2,1804.8,11.08111758]
[1745691601448,4.596,1805.2,1804.9,5.54043721]
[1745691601873,4.596,1805.2,1804.9,6.64853479]
[1745691607559,4.596,1805.2,1804.9,6.64836879]
[1745691614002,4.596,1805.2,1805.0,5.54001388]
[1745691614189,4.596,1805.2,1805.0,5.53996368]
[1745691622409,4.596,1805.2,1805.0,5.5399547]
[1745691623488,0.8333,1805.3,1805.0,5.5399547]
[1745691632016,0.8333,1805.3,1805.1,0.20881646]
[1745691656069,6.37256186,1805.3,1805.1,0.20881646]
[1745691656364,7.46931805,1805.3,1804.9,7.59878691]
[1745691656565,0.8333,1805.3,1805.2,0.19903831]
[1745691656739,0.8333,1805.3,1804.9,13.13904327]
[1745691657078,0.8333,1805.3,1805.0,0.19903831]
[1745691657465,0.8333,1805.3,1805.0,5.73919192]
[1745691661943,5.4263,1805.3,1805.0,5.73919192]
[1745691665832,5.4263,1805.3,1805.0,5.73900306]
[1745691666032,5.4263,1805.3,1805.0,7.07278705]
[1745691668569,4.593,1805.3,1805.1,5.53974341]
[1745691668947,4.593,1805.3,1805.2,0.19932556]
[1745691669435,4.593,1805.3,1805.1,5.53974341]
[1745691669637,4.593,1805.3,1805.2,0.19932556]
[1745691669836,4.593,1805.3,1805.1,6.35894807]
[1745691670159,4.593,1805.3,1805.2,0.83522037]
[1745691671376,6.32155507,1805.5,1805.2,0.83522037]
[1745691671553,10.91455507,1805.5,1805.2,0.19932556]
[1745691671743,10.91455507,1805.5,1805.1,6.35894807]
[1745691671941,10.91455507,1805.5,1805.3,0.19932556]
[1745691672142,10.91455507,1805.5,1805.1,6.35894807]
[1745691672341,10.91455507,1805.5,1805.4,0.19852114]
[1745691672622,10.91455507,1805.5,1805.1,6.35894807]
[1745691672874,10.91455507,1805.5,1805.1,7.68222474]
[1745691673081,10.91455507,1805.5,1805.2,0.19852114]
[1745691673283,10.91455507,1805.5,1805.1,7.68222474]
[1745691673466,10.91455507,1805.5,1805.2,0.19852114]
[1745691673774,10.91455507,1805.5,1805.1,7.68222474]
[1745691673951,10.91455507,1805.5,1805.3,0.19852114]
[1745691674353,5.3758,1805.5,1805.1,7.68222474]
[1745691674580,5.3758,1805.5,1805.4,0.19852114]
[1745691675068,5.3758,1805.5,1805.2,5.53954688]
[1745691675249,5.3758,1805.5,1805.4,0.19852114]
[1745691675454,5.3758,1805.5,1805.2,5.53954688]
[1745691675670,5.3758,1805.5,1805.3,0.19852114]
[1745691678209,10.91447979,1805.5,1805.3,0.19852114]
[1745691678506,10.91447979,1805.5,1805.1,6.35895188]
[1745691678803,10.91447979,1805.5,1805.4,0.19852114]
[1745691679006,10.91447979,1805.5,1805.1,7.54884833]
[1745691679181,10.91447979,1805.5,1805.4,0.19852114]
[1745691679381,10.91447979,1805.5,1805.1,7.54884833]
[1745691679567,10.91447979,1805.5,1805.4,0.19852114]
[1745691679766,5.54062903,1804.9,1804.5,5.8193]
[1745691680004,5.54085331,1804.8,1804.5,5.0]
[1745691680184,6.36157775,1804.9,1804.5,10.54161592]
[1745691680380,6.36157775,1804.9,1804.6,1.05416159]
[1745691680912,0.8211,1804.9,1804.6,6.5955188]
[1745691684410,10.13338394,1805.0,1804.7,7.65562002]
[1745691684411,4.593,1805.0,1804.7,7.65562002]
[1745691684707,4.593,1805.0,1804.8,5.72215388]
[1745691685209,4.593,1805.0,1804.8,0.18140373]
[1745691686407,4.593,1805.0,1804.9,5.54047315]
[1745691686786,4.593,1805.0,1804.9,6.54825878]
[1745691686983,4.593,1805.0,1804.9,7.83919461]
[1745691689018,4.593,1805.3,1805.0,5.54011763]
[1745691689314,4.593,1805.3,1805.1,0.1836413]